Cogmind - Beta 13 X1 @@@ ROGUE MODE // 2023.07.19 @ 22:12:05 Player: WayneKnight Result: Self-destructed Performance ------------- Evolutions (6) 3000 Regions Visited (24) 4800 Robots Destroyed (189) 945 Value Destroyed (5413) 5413 Prototype IDs (33) 660 Alien Tech Used (1) 200 Bonus (1742) 1742 TOTAL SCORE: 16760 Bonus ------- High Alert Combat Kills 34 Follower Combat Kills 144 Met Data Miner 300 Met Imprinter 300 Met Warlord at Base 500 MAIN.C Attacked Warlord 500 Friendly Fire -36 Cogmind --------- Core Integrity 952/1150 Matter 190/300 Energy 123/170 System Corruption 3% Temperature Cool (0) Movement Hovering (101) Ox1 Location -4/Factory Parts ------- > --- POWER (2) -------- Light Neutrino Core > --- PROPULSION (6) --- Cooled Aerolev Unit Gyrokinetic Inverter > --- UTILITY (9) ------ Experimental Cooling System Large Storage Unit Enhanced Optical Array Experimental Sensor Array Advanced Signal Interpreter Advanced Hacking Suite Advanced Hacking Suite Advanced System Shield > --- WEAPON (3) ------- Power Sword > --- INVENTORY (15) --- Vortex Chain Reactor Improved Diametric Drive Improved Diametric Drive Advanced Sensor Array Advanced Signal Interpreter Improved Phase Shifter EM Disruption Field Improved Dynamic Insulation System System Restoration Module Enhanced Gauss Cannon CR-A16's Pointy Stick Lance Lance Peak State ------------ > --- POWER ------------ Vortex Chain Reactor > --- PROPULSION ------- Antigrav System Antigrav System Antigrav System Gyrokinetic Inverter Linear Gravjet Improved Linear Gravjet > --- UTILITY ---------- Large Storage Unit Enhanced Optical Array Experimental Sensor Array Advanced Signal Interpreter Improved Phase Shifter Advanced Hacking Suite Advanced Hacking Suite Advanced System Shield Improved Dynamic Insulation System > --- WEAPON ----------- Power Sword Lance Lance > --- INVENTORY -------- Light Neutrino Core Cooled Aerolev Unit Cooled Aerolev Unit Cooled Aerolev Unit Improved Diametric Drive Improved Diametric Drive Experimental Cooling System Advanced Sensor Array Advanced Signal Interpreter EM Disruption Field Enhanced Gauss Cannon Micro-nuke Launcher CR-A16's Pointy Stick [Rating: 133] Favorites ----------- Power Improved Ion Engine Engine Improved Ion Engine Power Core Light Fission Core Reactor Vortex Chain Reactor Propulsion Antigrav System Treads Light Treads Leg VSS Leg Wheel Wheel Hover Unit Antigrav System Flight Unit Improved VTOL Module Utility Large Storage Unit Device Experimental Sensor Array Storage Large Storage Unit Processor Advanced Signal Interpreter Hackware Improved System Shield Protection Core Shielding Weapon Heavy Assault Rifle Energy Gun EM Pulse Gun Ballistic Gun Heavy Assault Rifle Ballistic Cannon Bore Cannon Launcher Mini Grenade Launcher Impact Weapon Shock Maul Slashing Weapon Greatsword Piercing Weapon Lance Build | -11 -10 -10 -9 -9 -9 -8 -8 -8 -7 -7 -7 -7 -6 -6 -6 -6 -6 -5 -5 -5 -5 -5 -4 -4 ------- Run | Jun Mat Min Mat Min Exi Min Mat Sto Fac Low Low Zio Pro Fac Low Low Dat Pro Fac Upp Upp War Pro Fac Slots Evolved 12 | . . . 2 . . . 2 . 2 . . . . 2 . . . . 2 . . . . 2 Power 1 | . . . . . . . . . . . . . . . . . . . 1 . . . . . Propulsion 3 | . . . 1 . . . . . 1 . . . . 1 . . . . . . . . . . Utility 7 | . . . 1 . . . 2 . 1 . . . . 1 . . . . 1 . . . . 1 Weapon 1 | . . . . . . . . . . . . . . . . . . . . . . . . 1 Parts Attached 310 | 4 8 4 25 11 2 5 17 36 21 . 2 2 8 22 4 . . 23 71 6 4 2 7 26 Power 26 | . 1 . 3 1 . 1 4 . 3 . . . . 2 . . . 1 7 1 . 1 . 1 Engine 13 | . 1 . 3 1 . 1 3 . . . . . . . . . . . 4 . . . . . Core 12 | . . . . . . . 1 . 3 . . . . 2 . . . 1 3 1 . . . 1 Reactor 1 | . . . . . . . . . . . . . . . . . . . . . . 1 . . Propulsion 84 | 2 4 . 9 3 . 1 3 8 7 . . . . 4 3 . . 2 25 . . . 1 12 Treads 9 | 1 3 . 3 . . . . 2 . . . . . . . . . . . . . . . . Leg 19 | . . . 5 2 . 1 3 5 3 . . . . . . . . . . . . . . . Wheel 4 | 1 1 . 1 1 . . . . . . . . . . . . . . . . . . . . Hover 51 | . . . . . . . . . 4 . . . . 4 3 . . 2 25 . . . 1 12 Flight 1 | . . . . . . . . 1 . . . . . . . . . . . . . . . . Utility 119 | 1 2 . 6 3 . 1 6 18 9 . 2 1 4 13 1 . . 12 27 2 . 1 . 10 Device 69 | . . . . 1 . . 2 12 2 . 1 . 4 7 1 . . 7 22 2 . 1 . 7 Storage 4 | 1 1 . 1 . . . . . 1 . . . . . . . . . . . . . . . Processor 4 | . . . . . . . 1 . . . . . . 1 . . . . 2 . . . . . Hackware 11 | . . . . . . . 1 . 2 . . . . 4 . . . . 1 . . . . 3 Protection 31 | . 1 . 5 2 . 1 2 6 4 . 1 1 . 1 . . . 5 2 . . . . . Artifact . | . . . . . . . . . . . . . . . . . . . . . . . . . Weapon 81 | 1 1 4 7 4 2 2 4 10 2 . . 1 4 3 . . . 8 12 3 4 . 6 3 Energy Gun 2 | . . 1 . . . . . 1 . . . . . . . . . . . . . . . . Energy Cannon . | . . . . . . . . . . . . . . . . . . . . . . . . . Ballistic Gun 26 | 1 1 1 7 2 2 1 4 6 1 . . . . . . . . . . . . . . . Ballistic Cannon 6 | . . . . . . . . . . . . . . . . . . 1 2 . . . 3 . Launcher 12 | . . 2 . 2 . 1 . . . . . . 2 . . . . 2 . . 2 . . 1 Special Weapon . | . . . . . . . . . . . . . . . . . . . . . . . . . Impact Weapon 9 | . . . . . . . . 3 . . . . . . . . . 1 5 . . . . . Slashing Weapon 11 | . . . . . . . . . . . . 1 2 2 . . . 2 2 2 . . . . Piercing Weapon 15 | . . . . . . . . . 1 . . . . 1 . . . 2 3 1 2 . 3 2 Special Melee Weapon . | . . . . . . . . . . . . . . . . . . . . . . . . . Unidentified Prototypes 11 | . . . . . . . . 3 2 . . . . . 1 . . . 3 . . 2 . . Corrupted Parts 1 | . . . . . . . . . . . . . . . . . . . 1 . . . . . System Corruption 6 | . . . . . . . . . . . . . . . . . . . 6 . . . . . Parts Lost 55 | . 1 1 3 7 . 2 7 8 . . . . . 2 . . . 9 7 . . . 1 7 Power 13 | . 1 . 1 1 . 1 2 1 . . . . . . . . . 2 4 . . . . . Propulsion 21 | . . . 1 2 . 1 2 3 . . . . . 2 . . . 2 1 . . . 1 6 Utility 12 | . . . 1 2 . . 2 1 . . . . . . . . . 4 2 . . . . . Weapon 9 | . . 1 . 2 . . 1 3 . . . . . . . . . 1 . . . . . 1 Highest Loss Streak 7 | . 1 1 1 5 . 2 2 2 . . . . . 1 . . . 6 3 . . . 1 7 To Critical Strikes . | . . . . . . . . . . . . . . . . . . . . . . . . . Average Slot Usage (%) 93 | . 99 100 99 94 77 98 97 98 99 100 100 98 91 85 79 81 81 79 89 96 100 97 94 87 Engine 4 | . 14 14 10 7 11 10 7 8 3 . . . . . . . . . 4 . . . . . Core 2 | . . . . . . . . . 3 7 7 7 7 6 6 6 6 5 3 7 11 6 . . Treads 2 | . 18 14 18 . . . . 2 . . . . . . . . . . . . . . . . Leg 9 | . . . 12 32 33 32 27 24 20 . . . . . . . . . . . . . . . Hover 14 | . . . . . . . . . 9 30 30 30 30 26 20 25 25 24 26 33 33 33 33 29 Device 8 | . . . . 3 11 9 9 13 15 7 6 7 7 6 12 12 12 10 9 11 11 11 11 10 Storage 7 | . 14 14 11 11 11 11 9 9 7 7 7 7 7 6 6 6 6 6 5 5 5 5 5 5 Processor 6 | . . . . . . . . 9 7 7 7 7 7 6 6 6 6 6 13 11 11 11 11 10 Hackware 9 | . . . . . . . 1 . 8 15 15 15 15 21 19 18 18 17 11 16 16 16 16 18 Protection 8 | . 13 14 21 18 11 12 22 13 5 7 7 7 7 2 . . . 1 1 . . . . . Ballistic Gun 7 | . 13 19 21 20 . 22 17 16 6 . . . . . . . . . . . . . . . Impact Weapon 1 | . . . . . . . . . 7 7 7 5 . . . . . . 3 . . . . . Slashing Weapon 2 | . . . . . . . . . . . . 1 6 5 6 6 6 5 2 1 5 5 5 5 Piercing Weapon 1 | . . . . . . . . . . 7 7 5 . . . . . 1 2 9 4 5 4 5 Naked Turns . | . . . . . . . . . . . . . . . . . . . . . . . . . Heaviest Build 70 | 17 28 28 40 42 31 38 43 41 37 37 38 37 38 42 34 34 34 47 58 56 56 63 63 70 Greatest Support 64 | 10 40 10 60 44 44 52 57 44 63 38 38 38 38 49 61 61 61 64 64 60 60 60 60 64 Greatest Overweight (x) 3 | 1 2 2 3 2 . . . 1 . . . . . 1 . . . . 1 . . 1 1 1 Average Overweight (x) . | 1 1 2 . . . . . . . . . . . . . . . . . . . . 1 . Largest Inventory Capacity 15 | 8 15 15 15 15 15 15 15 15 15 15 15 15 15 15 15 15 15 15 15 15 15 15 15 15 Average Capacity 14 | 8 8 15 15 15 15 15 15 15 15 15 15 15 15 15 15 15 15 15 15 15 15 15 15 15 Most Carried 15 | 6 15 15 15 15 15 15 15 15 15 15 15 15 15 15 15 15 15 15 15 15 15 15 15 15 Average Carried 14 | 6 8 14 14 14 14 14 14 14 14 14 14 14 14 14 14 15 15 13 13 14 15 14 14 14 Final Capacity 15 | 8 15 15 15 15 15 15 15 15 15 15 15 15 15 15 15 15 15 15 15 15 15 15 15 15 Final Carried 15 | 6 15 15 15 14 13 15 15 15 14 15 15 15 15 14 15 15 15 9 14 15 15 15 14 14 Class Distribution -------------------- 33% | Mutant 32% | Hacker-Mutant 15% | Hacker-Scout 14% | Scavenger-Mutant 4% | Hacker-Assassin Dominant Class ---------------- Mutant | -10/Materials Mutant | -10/Mines Mutant | -9/Materials Mutant | -9/Mines Mutant | -9/Exiles Mutant | -8/Mines Scavenger-Mutant | -8/Materials Scavenger-Mutant | -8/Storage Mutant | -7/Factory Hacker-Mutant | -7/Lower Caves Hacker-Mutant | -7/Lower Caves Hacker-Mutant | -7/Zion Hacker-Mutant | -6/Proximity Caves Hacker-Mutant | -6/Factory Hacker-Mutant | -6/Lower Caves Hacker-Mutant | -6/Lower Caves Hacker-Mutant | -6/Data Miner Hacker-Mutant | -5/Proximity Caves Hacker-Scout | -5/Factory Hacker-Scout | -5/Upper Caves Hacker-Scout | -5/Upper Caves Hacker-Scout | -5/Warlord Hacker-Assassin | -4/Proximity Caves Hacker-Scout | -4/Factory Resources | -11 -10 -10 -9 -9 -9 -8 -8 -8 -7 -7 -7 -7 -6 -6 -6 -6 -6 -5 -5 -5 -5 -5 -4 -4 ----------- Run | Jun Mat Min Mat Min Exi Min Mat Sto Fac Low Low Zio Pro Fac Low Low Dat Pro Fac Upp Upp War Pro Fac Matter Collected 5504 | 243 207 67 565 441 . 92 562 810 225 39 34 70 65 290 59 17 . 192 861 100 24 . 142 399 Remotely . | . . . . . . . . . . . . . . . . . . . . . . . . . Salvage Created 6631 | 82 528 89 965 310 . 128 711 814 222 . . . 42 270 . . . 281 1413 244 59 . . 473 Parts 403 | 2 44 12 83 11 . 21 44 44 3 . . . 6 19 . . . 10 62 1 8 . . 33 Haulers Intercepted 4 | . 1 . . . . . . . 1 . . . . . . . . . 2 . . . . . Recyclers Shooed 3 | . . . . 1 . . 2 . . . . . . . . . . . . . . . . . Parts Field Recycled . | . . . . . . . . . . . . . . . . . . . . . . . . . Retrieved Matter . | . . . . . . . . . . . . . . . . . . . . . . . . . Parts Self-Destructed 27 | . . . . . . . . . . . . . 4 . . . . 8 . 1 14 . . . Prevented 4 | . . . . . . . . . . . . . . . 3 . . . . . 1 . . . Kills | -11 -10 -10 -9 -9 -9 -8 -8 -8 -7 -7 -7 -7 -6 -6 -6 -6 -6 -5 -5 -5 -5 -5 -4 -4 ------- Run | Jun Mat Min Mat Min Exi Min Mat Sto Fac Low Low Zio Pro Fac Low Low Dat Pro Fac Upp Upp War Pro Fac Combat Hostiles Destroyed 138 | . 12 9 25 11 . 7 12 19 2 . . . 7 2 . . . 10 11 . 4 . . 7 Melee 21 | . . . . . . . . 2 1 . . . . 2 . . . 3 11 . . . . 2 Guns 74 | . 11 4 25 6 . 4 12 12 . . . . . . . . . . . . . . . . AOE 37 | . 1 5 . 5 . 3 . . . . . . 7 . . . . 7 . . 4 . . 5 Classes Destroyed 18 | 1 5 . 4 3 . 1 1 . 1 . . . . . . . . . 2 . . . . . Worker 12 | . 1 . 1 . . 1 2 . 1 . . . . 1 . . . . 4 . . . . 1 Builder 4 | . . . . . . . . . . . . . . . . . . . 2 . . . . 2 Tunneler 2 | . . . . . . 1 . . . . . . . . . . . . . . . . . 1 Hauler 4 | . 1 . . . . . . . 1 . . . . . . . . . 2 . . . . . Recycler 8 | 1 1 . . 1 . . 1 . . . . . . . . . . . 3 . . . . 1 Mechanic 1 | . . . . . . . . . . . . . . . . . . . 1 . . . . . Operator 3 | . . . 2 . . . . . 1 . . . . . . . . . . . . . . . Watcher 24 | . 3 . 2 . . . 2 2 1 . . . . 5 . . . . 6 . . . . 3 Swarmer 57 | . 6 9 7 . . 7 3 6 . . . . 7 . . . . 4 . . 4 . . 4 Grunt 31 | . 6 . 10 1 . . 3 6 . . . . . . . . . 4 . . . . . 1 Brawler 2 | . . . 1 1 . . . . . . . . . . . . . . . . . . . . Duelist 1 | . . . 1 . . . . . . . . . . . . . . . . . . . . . Sentry 19 | . . . 6 . . . 4 7 1 . . . . 1 . . . . . . . . . . Demolisher 3 | . . . . 1 . . . . . . . . . . . . . 2 . . . . . . Hunter 3 | . . . . . . . 2 . . . . . . . . . . . 1 . . . . . Programmer 14 | . . . . . . . . . 1 . . . . 1 . . . . 10 . . . . 2 Zionite 1 | . . . . 1 . . . . . . . . . . . . . . . . . . . . Assembled 8 | . . . . 8 . . . . . . . . . . . . . . . . . . . . Best Kill Streak 8 | 1 4 3 5 5 . 6 4 3 1 . . . 4 1 . . . 4 6 . 4 . . 8 Combat Bots Only 5 | . 4 3 4 4 . 4 4 3 1 . . . 4 1 . . . 4 2 . 4 . . 5 Max Kills in Single Turn 5 | 1 2 3 1 3 . 5 1 1 1 . . . 2 1 . . . 3 1 . 4 . . 5 Gunslinging . | . . . . . . . . . . . . . . . . . . . . . . . . . Exploded 5 | . 1 3 . 3 . 3 . . . . . . 2 . . . . 3 . . 4 . . 5 Melee 1 | . . . . . . . . 1 1 . . . . 1 . . . 1 1 . . . . 1 Uniques/NPCs Destroyed . | . . . . . . . . . . . . . . . . . . . . . . . . . Combat | -11 -10 -10 -9 -9 -9 -8 -8 -8 -7 -7 -7 -7 -6 -6 -6 -6 -6 -5 -5 -5 -5 -5 -4 -4 -------- Run | Jun Mat Min Mat Min Exi Min Mat Sto Fac Low Low Zio Pro Fac Low Low Dat Pro Fac Upp Upp War Pro Fac Damage Taken 9291 | . 311 152 851 1180 . 168 882 1151 98 23 237 . 110 484 37 39 . 913 1297 . 22 . 216 1120 Core 1469 | . 41 21 77 170 . 54 43 167 11 23 43 . . 70 17 . . 181 314 . . . 39 198 Absorbed by Shields 120 | . . . . . . . . . . . . . 38 . . . . 82 . . . . . . Redirected to Shielding 112 | . 8 4 16 14 . 11 9 32 . . . . . . . . . . 18 . . . . . Ignored by Resistances 305 | . . . . . . . . . . . . . . 36 . . . . 242 . . . . 27 Regen/Repaired (Parts) 475 | . 166 . 70 . . . 30 132 . . . 21 . 29 . . . . . . . 27 . . Core Remaining (%) 68 | 100 . 75 . . . 24 . 61 . . . . 89 . . . . 68 . . . . 64 . Volleys Fired 349 | 1 44 13 65 40 . 7 78 54 1 . . . 7 . . . . 5 2 . 1 . 28 3 Largest 2 | 2 2 2 2 2 . 2 2 2 1 . . . 1 . . . . 1 1 . 1 . 1 1 Hottest 60 | 60 60 40 46 46 . 46 53 53 28 . . . 30 . . . . 30 57 . 30 . 57 49 Shots Fired 635 | 2 88 23 130 65 . 15 156 107 1 . . . 7 . . . . 5 4 . 1 . 28 3 Gun 580 | 2 88 20 130 62 . 14 156 107 1 . . . . . . . . . . . . . . . Cannon 32 | . . . . . . . . . . . . . . . . . . . 4 . . . 28 . Launcher 23 | . . 3 . 3 . 1 . . . . . . 7 . . . . 5 . . 1 . . 3 Special . | . . . . . . . . . . . . . . . . . . . . . . . . . Kinetic 567 | 1 44 20 130 62 . 14 156 107 1 . . . . . . . . . 4 . . . 28 . Thermal . | . . . . . . . . . . . . . . . . . . . . . . . . . Explosive 23 | . . 3 . 3 . 1 . . . . . . 7 . . . . 5 . . 1 . . 3 Electromagnetic 45 | 1 44 . . . . . . . . . . . . . . . . . . . . . . . Robot Hit Streak 25 | 1 15 4 25 9 . 4 15 15 8 . . . 11 . . . . 1 . . . . . 1 Robot Miss Streak 6 | . 5 2 4 4 . 1 6 2 . . . . . . . . . 1 1 . . . . 2 Penetration Max 1 | . . . . . . . 1 . . . . . . . . . . . . . . . . . Secondary Targets 2 | . 1 . . . . 1 . . . . . . . . . . . . . . . . . . Max Gunslinging Chain 1 | . 1 . . . . 1 . . . . . . . . . . . . . . . . . . Shots Hit Robots 516 | 1 52 11 87 34 . 9 95 91 12 . . . 3 21 . . . 10 59 6 . . . 25 Core Hits 261 | 1 24 10 42 21 . 9 39 26 2 . . . 13 6 . . . 18 22 3 4 . . 21 Critical Kills 6 | . . . . . . . . 2 2 . . . . . . . . . 2 . . . . . Critical Parts Destroyed 19 | . . . 1 . . . 1 5 5 . . . . . . . . . 7 . . . . . Critical Strikes 32 | . . . 1 . . . 1 7 7 . . . . 1 . . . 1 10 1 . . . 3 Destroy 3 | . . . 1 . . . 1 1 . . . . . . . . . . . . . . . . Smash 22 | . . . . . . . . 6 7 . . . . . . . . . 9 . . . . . Sever 3 | . . . . . . . . . . . . . . 1 . . . . 1 . . . . 1 Impale 4 | . . . . . . . . . . . . . . . . . . 1 . 1 . . . 2 Melee Attacks 362 | . . . . . . . . 21 26 5 5 . 2 61 4 . . 24 147 9 . . 9 49 Impact 133 | . . . . . . . . 21 26 5 4 . . . . . . 1 76 . . . . . Slashing 122 | . . . . . . . . . . . . . 2 61 4 . . 9 34 . . . 2 10 Piercing 107 | . . . . . . . . . . . 1 . . . . . . 14 37 9 . . 7 39 Sneak Attacks 23 | . . . . . . . . . 2 . . . . 4 . . . . 12 . . . . 5 Combat Hostiles . | . . . . . . . . . . . . . . . . . . . . . . . . . Follow-up Attacks 14 | . . . . . . . . . . . . . . . . . . 2 5 1 . . . 6 Damage Inflicted 17056 | 15 802 457 1293 769 . 399 1555 2053 673 . . . 589 1309 . . . 835 3443 459 194 . . 2211 Guns 5917 | 15 739 125 1293 535 . 130 1555 1498 27 . . . . . . . . . . . . . . . Cannons . | . . . . . . . . . . . . . . . . . . . . . . . . . Explosions 3149 | . 63 332 . 234 . 269 . . . . . . 589 . . . . 433 . . 194 . . 1035 Melee 7990 | . . . . . . . . 555 646 . . . . 1309 . . . 402 3443 459 . . . 1176 Ramming . | . . . . . . . . . . . . . . . . . . . . . . . . . Kinetic 5497 | 15 319 125 1293 535 . 130 1555 1498 27 . . . . . . . . . . . . . . . Thermal 63 | . 63 . . . . . . . . . . . . . . . . . . . . . . . Explosive 3086 | . . 332 . 234 . 269 . . . . . . 589 . . . . 433 . . 194 . . 1035 Electromagnetic 420 | . 420 . . . . . . . . . . . . . . . . . . . . . . . Impact 3408 | . . . . . . . . 555 646 . . . . . . . . . 2207 . . . . . Slashing 2428 | . . . . . . . . . . . . . . 1309 . . . 283 579 . . . . 257 Piercing 2154 | . . . . . . . . . . . . . . . . . . 119 657 459 . . . 919 Highest Corruption 8 | . . . 1 8 8 8 . . 4 4 4 4 . 1 . . . . 6 4 4 4 . 3 Average Corruption 2 | . . . 1 1 8 8 . . 1 4 4 4 . 1 . . . . 2 4 4 4 . 1 Corruption Purged 5 | . . . . . . . . . . . . . . 1 . . . . 4 . . . . . Corruption Blocked 7 | . . . . . . . . . 7 . . . . . . . . . . . . . . . Effects 136 | . . . . 14 6 7 . . 18 9 7 . . 3 . . . . 51 9 6 1 . 5 Message Errors 26 | . . . . 2 2 1 . . 5 2 . . . . . . . . 12 1 . . . 1 Matter Fused 39 | . . . . 5 . . . . 6 1 3 . . 3 . . . . 13 4 3 . . 1 Heat Flow Errors 17 | . . . . 3 . 1 . . 2 1 2 . . . . . . . 5 . 1 1 . 1 Energy Discharges 21 | . . . . 1 . 1 . . 2 2 2 . . . . . . . 11 1 1 . . . Parts Rejected 1 | . . . . 1 . . . . . . . . . . . . . . . . . . . . Parts Fused 1 | . . . . . . . . . 1 . . . . . . . . . . . . . . . Data Loss (minor) 14 | . . . . 1 2 1 . . . 1 . . . . . . . . 6 2 . . . 1 Data Loss (major) 5 | . . . . . . . . . 1 2 . . . . . . . . . 1 . . . 1 Misfires 4 | . . . . . . 2 . . . . . . . . . . . . 2 . . . . . Alerts 7 | . . . . . 2 1 . . 1 . . . . . . . . . 2 . 1 . . . Weapon Failures 1 | . . . . 1 . . . . . . . . . . . . . . . . . . . . Overload Shots . | . . . . . . . . . . . . . . . . . . . . . . . . . Overflow Damage 2271 | . 2 . . . . 4 . 210 397 . . . 4 223 . . . 67 988 127 . . . 249 Projectiles . | . . . . . . . . . . . . . . . . . . . . . . . . . Explosions 25 | . 2 . . . . 4 . . . . . . 4 . . . . . . . . . . 15 Melee 2246 | . . . . . . . . 210 397 . . . . 223 . . . 67 988 127 . . . 234 Knockbacks 15 | . . . . . . . . 3 2 . . . . . . . . . 10 . . . . . Impact 14 | . . . . . . . . 3 2 . . . . . . . . . 9 . . . . . Kinetic . | . . . . . . . . . . . . . . . . . . . . . . . . . Secondary 1 | . . . . . . . . . . . . . . . . . . . 1 . . . . . Self-Inflicted Damage 271 | . 26 . . 44 . 49 . . . . . . . . . . . 14 . . . . . 138 Shots 7 | . 1 . . 1 . 1 . . . . . . . . . . . 1 . . . . . 3 Rammed . | . . . . . . . . . . . . . . . . . . . . . . . . . Targets Rammed . | . . . . . . . . . . . . . . . . . . . . . . . . . Kicked . | . . . . . . . . . . . . . . . . . . . . . . . . . Crushed . | . . . . . . . . . . . . . . . . . . . . . . . . . Highest Temperature 348 | . 42 . 38 283 . 133 26 21 194 166 236 . . 7 . . . 32 236 . 134 195 . 348 Average Temperature 62 | . 18 . 12 83 . 61 7 7 86 83 112 . . 4 . . . 11 44 . 101 101 . 160 Received Heat Transfer 1668 | . 78 . 267 126 . . 288 432 9 . 81 . . 126 12 18 . 168 9 . . . . 54 Effects 4 | . . . . 3 . . . . . . . . . . . . . . . . . . . 1 Energy Bleed 1 | . . . . 1 . . . . . . . . . . . . . . . . . . . . Interference 2 | . . . . 2 . . . . . . . . . . . . . . . . . . . . Matter Decay 1 | . . . . . . . . . . . . . . . . . . . . . . . . 1 Siege Activations . | . . . . . . . . . . . . . . . . . . . . . . . . . Robots Corrupted . | . . . . . . . . . . . . . . . . . . . . . . . . . Combat Hostiles . | . . . . . . . . . . . . . . . . . . . . . . . . . Parts Fried 21 | . 1 . . . . . . 6 4 . . . . . . . . . 10 . . . . . Impact Corruptions 44 | . . . . . . . . 8 11 . . . . . . . . . 25 . . . . . Robots Melted . | . . . . . . . . . . . . . . . . . . . . . . . . . Combat Hostiles . | . . . . . . . . . . . . . . . . . . . . . . . . . Parts Melted 1 | . 1 . . . . . . . . . . . . . . . . . . . . . . . Heat Transferred 100 | . 100 . . . . . . . . . . . . . . . . . . . . . . . Parts Sabotaged . | . . . . . . . . . . . . . . . . . . . . . . . . . Parts Stolen . | . . . . . . . . . . . . . . . . . . . . . . . . . Parts Stripped . | . . . . . . . . . . . . . . . . . . . . . . . . . Power Chain Reactions 2 | . 2 . . . . . . . . . . . . . . . . . . . . . . . Missiles Intercepted . | . . . . . . . . . . . . . . . . . . . . . . . . . Alert | -11 -10 -10 -9 -9 -9 -8 -8 -8 -7 -7 -7 -7 -6 -6 -6 -6 -6 -5 -5 -5 -5 -5 -4 -4 ------- Run | Jun Mat Min Mat Min Exi Min Mat Sto Fac Low Low Zio Pro Fac Low Low Dat Pro Fac Upp Upp War Pro Fac Peak Influence 640 | 5 248 144 311 126 . 191 156 224 172 . . . . 115 . . . . 242 . . . . 640 Initial 88 | . 3 2 27 76 . . 74 5 88 . . . . 9 . . . . 7 . . . . 9 Average 79 | 3 76 49 142 32 . 126 46 113 38 . . . . 24 . . . . 118 . . . . 88 Maximum Alert Level 2 | . 1 . 1 . . . . 1 . . . . . . . . . . 1 . . . . 2 Low Security (%) 94 | 100 95 100 78 100 . 100 100 91 100 . . . . 100 . . . . 89 . . . . 91 Level 1 5 | . 4 . 21 . . . . 8 . . . . . . . . . . 10 . . . . 6 Level 2 . | . . . . . . . . . . . . . . . . . . . . . . . . 1 Level 3 . | . . . . . . . . . . . . . . . . . . . . . . . . . Level 4 . | . . . . . . . . . . . . . . . . . . . . . . . . . Level 5 . | . . . . . . . . . . . . . . . . . . . . . . . . . High Security . | . . . . . . . . . . . . . . . . . . . . . . . . . Max Security . | . . . . . . . . . . . . . . . . . . . . . . . . . Squads Dispatched 34 | . 4 . 5 1 . . 3 5 3 . . . . 2 . . . . 6 . . . . 5 Investigation 5 | . . . 2 . . . . . 1 . . . . 1 . . . . . . . . . 1 Extermination 10 | . . . . . . . . . 2 . . . . 1 . . . . 5 . . . . 2 Reinforcement 13 | . 4 . 3 1 . . . 2 . . . . . . . . . . 1 . . . . 2 Assault . | . . . . . . . . . . . . . . . . . . . . . . . . . Garrison 6 | . . . . . . . 3 3 . . . . . . . . . . . . . . . . Intercept . | . . . . . . . . . . . . . . . . . . . . . . . . . Searches Triggered . | . . . . . . . . . . . . . . . . . . . . . . . . . Construction Impeded 2 | . . . . 1 . . . . . . . . . . . . . . . . . . . 1 Haulers Reinforced 1 | . . . . . . . . . . . . . . . . . . . . . . . . 1 Active Scanning Responses . | . . . . . . . . . . . . . . . . . . . . . . . . . Cargo Convoy Interrupts 1 | . . . . . . . . . 1 . . . . . . . . . . . . . . . Stealth | -11 -10 -10 -9 -9 -9 -8 -8 -8 -7 -7 -7 -7 -6 -6 -6 -6 -6 -5 -5 -5 -5 -5 -4 -4 --------- Run | Jun Mat Min Mat Min Exi Min Mat Sto Fac Low Low Zio Pro Fac Low Low Dat Pro Fac Upp Upp War Pro Fac Distress Signals 40 | . 1 . 3 . . . 2 . 1 . . . . . . . . 33 . . . . . . Communications Jammed . | . . . . . . . . . . . . . . . . . . . . . . . . . Distress Signals . | . . . . . . . . . . . . . . . . . . . . . . . . . Times Spotted 294 | . 18 9 35 12 . 6 34 29 9 1 4 . 8 8 1 4 . 31 31 . 6 . 1 47 Peak Tracking Total 14 | . 5 3 6 4 . 4 4 3 3 1 3 . 4 2 1 4 . 5 4 . 5 . 1 14 Tactical Retreats 40 | . 3 . . . . . 1 5 1 1 3 . 1 . . 2 . 9 5 . 3 . 1 5 Traps | -11 -10 -10 -9 -9 -9 -8 -8 -8 -7 -7 -7 -7 -6 -6 -6 -6 -6 -5 -5 -5 -5 -5 -4 -4 ------- Run | Jun Mat Min Mat Min Exi Min Mat Sto Fac Low Low Zio Pro Fac Low Low Dat Pro Fac Upp Upp War Pro Fac Traps Triggered 13 | . . . 2 . . . . . 2 . . . . 1 . . . 3 2 . . . . 3 Indirectly . | . . . . . . . . . . . . . . . . . . . . . . . . . Trap Hack Attempts . | . . . . . . . . . . . . . . . . . . . . . . . . . Triggered . | . . . . . . . . . . . . . . . . . . . . . . . . . Disarmed . | . . . . . . . . . . . . . . . . . . . . . . . . . Reprogrammed . | . . . . . . . . . . . . . . . . . . . . . . . . . Reused . | . . . . . . . . . . . . . . . . . . . . . . . . . Traps Extracted . | . . . . . . . . . . . . . . . . . . . . . . . . . Installed . | . . . . . . . . . . . . . . . . . . . . . . . . . Triggered 10 | . . . . . . . . . 1 . . . . . 1 . . . . . . 8 . . Machines | -11 -10 -10 -9 -9 -9 -8 -8 -8 -7 -7 -7 -7 -6 -6 -6 -6 -6 -5 -5 -5 -5 -5 -4 -4 ---------- Run | Jun Mat Min Mat Min Exi Min Mat Sto Fac Low Low Zio Pro Fac Low Low Dat Pro Fac Upp Upp War Pro Fac Machines Disabled 8 | . . . . . . 1 1 3 . . . . . . . . . . 1 . . . . 2 Max in Single Turn 2 | . . . . . . 1 1 1 . . . . . . . . . . 1 . . . . 2 Garrison Access 8 | . . . . . . . . 1 1 . . . . 3 . . . . 2 . . . . 1 Machines Repaired . | . . . . . . . . . . . . . . . . . . . . . . . . . Machines Sabotaged . | . . . . . . . . . . . . . . . . . . . . . . . . . Overloaded Fab Kills . | . . . . . . . . . . . . . . . . . . . . . . . . . Hacking | -11 -10 -10 -9 -9 -9 -8 -8 -8 -7 -7 -7 -7 -6 -6 -6 -6 -6 -5 -5 -5 -5 -5 -4 -4 --------- Run | Jun Mat Min Mat Min Exi Min Mat Sto Fac Low Low Zio Pro Fac Low Low Dat Pro Fac Upp Upp War Pro Fac Machines Accessed 129 | . 6 . 10 . 1 . 9 12 15 1 1 1 . 24 4 1 4 . 20 2 . 8 . 10 Terminals 69 | . 4 . 6 . . . 6 8 13 1 . . . 12 1 1 . . 10 . . . . 7 Fabricators 7 | . . . . . . . . . . . . . . 3 . . . . 2 . . . . 2 Repair Stations 7 | . 1 . 1 . . . 1 2 . . . . . 1 . . . . 1 . . . . . Recycling Units 7 | . 1 . 1 . . . . 1 . . . . . 2 . . . . 2 . . . . . Scanalyzers 8 | . . . 2 . . . 2 . . . . . . 2 . . . . 2 . . . . . Garrison Access 11 | . . . . . . . . 1 2 . . . . 4 . . . . 3 . . . . 1 Total Hacks 397 | . 24 . 44 . 1 . 31 26 45 1 1 5 . 79 6 1 30 . 58 2 . 9 . 34 Successful 253 | . 15 . 22 . 1 . 20 18 17 1 1 5 . 53 6 1 30 . 31 2 . 9 . 21 Failed 143 | . 9 . 22 . . . 11 8 28 . . . . 25 . . . . 27 . . . . 13 Catastrophic 24 | . 1 . 2 . . . . 3 5 . . . . 6 . . . . 4 . . . . 3 Database Lockouts 1 | . . . . . . . . . . . . . . 1 . . . . . . . . . . Manual 144 | . 11 . 18 . . . 11 9 17 . . . . 35 1 . . . 22 . . 1 . 19 Terminals 216 | . 15 . 22 . . . 17 16 37 1 . . . 50 1 1 . . 30 . . . . 26 Fabricators 18 | . . . . . . . . . . . . . . 8 . . . . 4 . . . . 6 Repair Stations 24 | . 6 . 2 . . . 4 6 . . . . . 4 . . . . 2 . . . . . Recycling Units 14 | . 3 . 2 . . . . 2 . . . . . 4 . . . . 3 . . . . . Scanalyzers 46 | . . . 18 . . . 10 . . . . . . 5 . . . . 13 . . . . . Garrison Access 26 | . . . . . . . . 2 8 . . . . 8 . . . . 6 . . . . 2 Terminal Hacks 133 | . 6 . 9 . 1 . 4 8 12 1 1 5 . 23 6 1 30 . 8 2 . 9 . 7 Record 27 | . . . . . 1 . . . . 1 . . . 2 4 1 11 . . . . 7 . . Part Schematic 20 | . . . . . . . . . . . . 5 . 5 . . 10 . . . . . . . Robot Schematic 6 | . . . . . . . . . . . . . . . . . 6 . . . . . . . Robot Analysis 6 | . 2 . 1 . . . 1 . 1 . . . . 1 . . . . . . . . . . Prototype ID Bank 10 | . . . 3 . . . . 1 1 . . . . 2 . . 3 . . . . . . . Open Door 11 | . . . . . . . . 4 . . 1 . . . 2 . . . . 2 . 2 . . Branch Access Points 3 | . . . 1 . . . . . . . . . . 1 . . . . 1 . . . . . Emergency Access Points 1 | . . . . . . . . . . . . . . . . . . . . . . . . 1 Terminal Index 1 | . . . . . . . . . 1 . . . . . . . . . . . . . . . Fabricator Index 3 | . . . . . . . . . . . . . . 1 . . . . 1 . . . . 1 Scanalyzer Index 1 | . . . . . . . . . 1 . . . . . . . . . . . . . . . Garrison Index 1 | . . . . . . . . . . . . . . 1 . . . . . . . . . . Alert Level 6 | . 1 . 1 . . . 1 . 1 . . . . 1 . . . . 1 . . . . . Unreport Threat 4 | . . . 1 . . . 1 . . . . . . . . . . . 2 . . . . . Locate Traps 22 | . 2 . 1 . . . 1 1 6 . . . . 4 . . . . 3 . . . . 4 Recall Investigation 1 | . . . . . . . . . . . . . . . . . . . . . . . . 1 Hauler Manifests 4 | . 1 . 1 . . . . 1 . . . . . 1 . . . . . . . . . . Registered Components 1 | . . . . . . . . . . . . . . 1 . . . . . . . . . . Zone Layout 5 | . . . . . . . . 1 1 . . . . 3 . . . . . . . . . . Fabricator Hacks 7 | . . . . . . . . . . . . . . 4 . . . . . . . . . 3 Load Schematic 4 | . . . . . . . . . . . . . . 2 . . . . . . . . . 2 Build 3 | . . . . . . . . . . . . . . 2 . . . . . . . . . 1 Repair Station Hacks 22 | . 6 . 2 . . . 4 5 . . . . . 3 . . . . 2 . . . . . Scan Component 11 | . 3 . 1 . . . 2 2 . . . . . 2 . . . . 1 . . . . . Repair 10 | . 3 . 1 . . . 2 2 . . . . . 1 . . . . 1 . . . . . Refit 1 | . . . . . . . . 1 . . . . . . . . . . . . . . . . Recycling Unit Hacks 6 | . 1 . . . . . . 1 . . . . . 2 . . . . 2 . . . . . Report Inventory 4 | . 1 . . . . . . . . . . . . 2 . . . . 1 . . . . . Retrieve Components 2 | . . . . . . . . 1 . . . . . . . . . . 1 . . . . . Scanalyzer 33 | . . . 9 . . . 8 . . . . . . 5 . . . . 11 . . . . . Insert Component 13 | . . . 2 . . . 3 . . . . . . 3 . . . . 5 . . . . . Analyze 20 | . . . 7 . . . 5 . . . . . . 2 . . . . 6 . . . . . Garrison Access Hacks 8 | . . . . . . . . 1 1 . . . . 3 . . . . 2 . . . . 1 Seal Access 8 | . . . . . . . . 1 1 . . . . 3 . . . . 2 . . . . 1 Unauthorized Hacks 44 | . 2 . 2 . . . 4 3 4 . . . . 13 . . . . 6 . . . . 10 Terminals 40 | . 2 . 2 . . . 4 3 4 . . . . 10 . . . . 6 . . . . 9 Track 13 | . . . . . . . 2 1 . . . . . 5 . . . . 2 . . . . 3 Assimilate 6 | . . . . . . . . 1 . . . . . 1 . . . . 1 . . . . 3 Botnet 21 | . 2 . 2 . . . 2 1 4 . . . . 4 . . . . 3 . . . . 3 Fabricators 2 | . . . . . . . . . . . . . . 1 . . . . . . . . . 1 Fabnet 2 | . . . . . . . . . . . . . . 1 . . . . . . . . . 1 Repair Stations . | . . . . . . . . . . . . . . . . . . . . . . . . . Recycling Units 2 | . . . . . . . . . . . . . . 2 . . . . . . . . . . Monitor 1 | . . . . . . . . . . . . . . 1 . . . . . . . . . . Recyclers 1 | . . . . . . . . . . . . . . 1 . . . . . . . . . . Scanalyzers . | . . . . . . . . . . . . . . . . . . . . . . . . . Garrison Access . | . . . . . . . . . . . . . . . . . . . . . . . . . Data Cores Recovered 3 | . . . 2 . . . . . 1 . . . . . . . . . . . . . . . Used . | . . . . . . . . . . . . . . . . . . . . . . . . . Hacking Detections 88 | . 6 . 10 . . . 7 8 15 . . . . 17 . . . . 16 . . . . 9 Full Trace Events 6 | . 1 . 2 . . . . . 1 . . . . 1 . . . . . . . . . 1 Feedback Events . | . . . . . . . . . . . . . . . . . . . . . . . . . Feedback Blocked . | . . . . . . . . . . . . . . . . . . . . . . . . . Robot Schematics Acquired 9 | . . . . . . . . . . . . 3 . . . . 6 . . . . . . . Robots Built . | . . . . . . . . . . . . . . . . . . . . . . . . . Authchips . | . . . . . . . . . . . . . . . . . . . . . . . . . Time . | . . . . . . . . . . . . . . . . . . . . . . . . . Total Robot Build Rating . | . . . . . . . . . . . . . . . . . . . . . . . . . Part Schematics Acquired 43 | . . . . . . . 1 . . . . 20 . 7 . . 10 . 5 . . . . . Parts Built 4 | . . . . . . . . . . . . . . 3 . . . . . . . . . 1 Authchips 1 | . . . . . . . . . . . . . . 1 . . . . . . . . . . Time 183 | . . . . . . . . . . . . . . 115 . . . . . . . . . 68 Total Part Build Rating 26 | . . . . . . . . . . . . . . 18 . . . . . . . . . 8 Parts Repaired 9 | . 3 . 1 . . . 2 2 . . . . . 1 . . . . . . . . . . Time 565 | . 78 . 32 . . . 206 76 . . . . . 61 . . . . 112 . . . . . Parts Recycled . | . . . . . . . . . . . . . . . . . . . . . . . . . Recycled Matter . | . . . . . . . . . . . . . . . . . . . . . . . . . Retrieved Matter . | . . . . . . . . . . . . . . . . . . . . . . . . . Retrieved Components 10 | . . . . . . . . 10 . . . . . . . . . . . . . . . . Parts Scanalyzed 8 | . . . 1 . . . 1 . . . . . . 1 . . . . 5 . . . . . Part Schematics Acquired 8 | . . . . . . . 1 . . . . . . 2 . . . . 5 . . . . . Parts Damaged 4 | . . . . . . . 2 . . . . . . . . . . . 2 . . . . . Bothacking | -11 -10 -10 -9 -9 -9 -8 -8 -8 -7 -7 -7 -7 -6 -6 -6 -6 -6 -5 -5 -5 -5 -5 -4 -4 ------------ Run | Jun Mat Min Mat Min Exi Min Mat Sto Fac Low Low Zio Pro Fac Low Low Dat Pro Fac Upp Upp War Pro Fac Used RIF Installer . | . . . . . . . . . . . . . . . . . . . . . . . . . Robots Hacked 1 | . . . . . . . . . . . . . . . . . . . 1 . . . . . Non-combat . | . . . . . . . . . . . . . . . . . . . . . . . . . Combat 1 | . . . . . . . . . . . . . . . . . . . 1 . . . . . Robot Hacks Applied . | . . . . . . . . . . . . . . . . . . . . . . . . . Relay Couplers Released 3 | . . . . . . . . . . . . . . . . . . . 3 . . . . . Machine Destruction 3 | . . . . . . . . . . . . . . . . . . . 3 . . . . . Fabnet Peak Effective % 3 | . . . . . . . . . . . . . . . . . . 3 3 3 3 3 1 1 Autooverrided 1 | . . . . . . . . . . . . . . . . . . . 1 . . . . . Robots Rewired 1 | . . . . . . . . . . . . . . . . . . . . . . . . 1 Allies Hacked 1 | . . . . . . . . . 1 . . . . . . . . . . . . . . . Hacks Repelled . | . . . . . . . . . . . . . . . . . . . . . . . . . Allies | -11 -10 -10 -9 -9 -9 -8 -8 -8 -7 -7 -7 -7 -6 -6 -6 -6 -6 -5 -5 -5 -5 -5 -4 -4 -------- Run | Jun Mat Min Mat Min Exi Min Mat Sto Fac Low Low Zio Pro Fac Low Low Dat Pro Fac Upp Upp War Pro Fac Total Allies 10 | . . . . 3 . . . . 2 . . . . . . . . 1 1 . . . . 3 Largest Group 3 | . . . . 3 . . . . 2 . . . . . . . . 1 1 . . . . 2 Highest-Rated Group 96 | . . . . 76 . . . . 62 . . . . . . . . 96 41 . . . . 94 Highest-Rated Ally 96 | . . . . 31 . . . . 31 . . . . . . . . 96 41 . . . . 49 Total Orders 1 | . . . . . . . . . . . . . . . . . . . . . . . . 1 STAY 1 | . . . . . . . . . . . . . . . . . . . . . . . . 1 Ally Attacks 31 | . . . . 2 . . . . 18 . . . . . . . . 4 3 . . . . 4 Total Damage 634 | . . . . 40 . . . . 318 . . . . . . . . 91 92 . . . . 93 Kills 3 | . . . . . . . . . 1 . . . . . . . . . 1 . . . . 1 Allies Corrupted . | . . . . . . . . . . . . . . . . . . . . . . . . . Allies Melted 1 | . . . . . . . . . . . . . . . . . . 1 . . . . . . Intel | -11 -10 -10 -9 -9 -9 -8 -8 -8 -7 -7 -7 -7 -6 -6 -6 -6 -6 -5 -5 -5 -5 -5 -4 -4 ------- Run | Jun Mat Min Mat Min Exi Min Mat Sto Fac Low Low Zio Pro Fac Low Low Dat Pro Fac Upp Upp War Pro Fac Robot Analysis Total 6 | . 2 . 1 . . . 1 . 1 . . . . 1 . . . . . . . . . . Derelict Logs Recovered 15 | . . 1 . 1 . . . . . 1 . 1 2 . 1 1 . 3 . 1 1 . 2 . Drone Launches . | . . . . . . . . . . . . . . . . . . . . . . . . . Drone Recoveries . | . . . . . . . . . . . . . . . . . . . . . . . . . Exploration | -11 -10 -10 -9 -9 -9 -8 -8 -8 -7 -7 -7 -7 -6 -6 -6 -6 -6 -5 -5 -5 -5 -5 -4 -4 ------------- Run | Jun Mat Min Mat Min Exi Min Mat Sto Fac Low Low Zio Pro Fac Low Low Dat Pro Fac Upp Upp War Pro Fac Turns Passed 27214 | 17 1541 449 1545 1278 182 160 2577 3637 1874 397 238 503 524 2482 608 225 39 2039 3681 471 208 411 977 1151 Spaces Moved 24876 | 9 714 369 761 513 170 118 797 1192 1809 640 396 875 737 2831 974 450 79 1962 4638 983 445 848 875 1691 Core . | . . . . . . . . . . . . . . . . . . . . . . . . . Treads 433 | . 81 . 316 . . . . 36 . . . . . . . . . . . . . . . . Legs 3932 | . . . 275 507 170 118 797 1156 909 . . . . . . . . . . . . . . . Wheels 1187 | 9 633 369 170 6 . . . . . . . . . . . . . . . . . . . . Hover 19324 | . . . . . . . . . 900 640 396 875 737 2831 974 450 79 1962 4638 983 445 848 875 1691 Flight . | . . . . . . . . . . . . . . . . . . . . . . . . . Fastest Speed 34 | 95 95 110 110 90 106 106 113 110 53 53 53 53 53 48 50 50 50 50 34 35 35 35 90 35 Average Speed 65 | 95 105 110 158 169 106 109 116 125 86 53 53 53 53 50 52 50 50 50 38 36 35 47 90 37 Slowest Speed 360 | 95 160 110 360 180 106 116 130 240 120 53 53 53 53 115 55 50 50 55 105 38 35 90 90 102 Overloaded Moves . | . . . . . . . . . . . . . . . . . . . . . . . . . Propulsion Burnouts . | . . . . . . . . . . . . . . . . . . . . . . . . . Robots Hopped . | . . . . . . . . . . . . . . . . . . . . . . . . . Cave-ins Triggered . | . . . . . . . . . . . . . . . . . . . . . . . . . Exploration Rate (%) 69 | 3 83 77 79 84 55 42 52 91 45 73 59 83 84 55 96 61 68 90 68 96 68 92 82 39 Regions Visited 24 Branch Regions 17 Pre-discovered Areas 10 | . . 2 . . 1 . . 1 . . . 2 . . 1 . 1 . . 1 1 . . . Known Exits Taken 18 | . . . 1 . . . 1 1 1 1 1 1 1 1 1 1 1 1 1 1 1 1 1 . Unknown Exits Taken 6 | 1 1 1 . 1 1 1 . . . . . . . . . . . . . . . . . . Scrap Searched 26 | . . 2 . . . 1 . . . 2 1 3 5 . 3 1 . 1 . 4 1 . 2 . Spaces Dug 188 | . . . . . . . . 2 13 5 4 . 2 37 4 . . 5 59 1 . . 42 14 Terrain Destroyed 397 | . 8 15 . 27 . 11 . 3 13 5 4 . 40 37 4 . . 45 60 1 5 . 42 77 Melee 150 | . . . . . . . . 2 13 5 4 . 2 37 4 . . 5 57 1 . . 6 14 Projectile 40 | . . . . . . . . 1 . . . . . . . . . . 3 . . . 36 . AOE 207 | . 8 15 . 27 . 11 . . . . . . 38 . . . . 40 . . 5 . . 63 Terrain Rammed . | . . . . . . . . . . . . . . . . . . . . . . . . . Walls Destroyed . | . . . . . . . . . . . . . . . . . . . . . . . . . Machines Disabled . | . . . . . . . . . . . . . . . . . . . . . . . . . Actions | -11 -10 -10 -9 -9 -9 -8 -8 -8 -7 -7 -7 -7 -6 -6 -6 -6 -6 -5 -5 -5 -5 -5 -4 -4 --------- Run | Jun Mat Min Mat Min Exi Min Mat Sto Fac Low Low Zio Pro Fac Low Low Dat Pro Fac Upp Upp War Pro Fac Total 34577 | 13 1411 389 977 857 172 135 2297 3193 2075 687 415 917 858 3748 1058 449 78 2965 6288 1083 496 858 1022 2136 Wait 8403 | . 629 3 92 289 . 1 1387 1860 172 42 10 28 97 804 74 . . 940 1389 83 45 . 106 352 Move 24852 | 8 713 368 760 512 169 117 796 1191 1808 639 395 874 736 2830 973 449 78 1961 4637 982 444 847 874 1691 Hop . | . . . . . . . . . . . . . . . . . . . . . . . . . Pick Up 125 | . 12 1 12 4 . 3 10 14 12 1 2 5 2 9 1 . . 2 22 2 1 3 . 7 Fast Attach 88 | 1 4 . 10 3 . 2 5 10 6 . . 1 2 6 2 . . 1 24 3 . 2 . 6 Attach 66 | . 1 1 4 5 2 1 6 7 5 . . . 2 3 1 . . 10 11 . . . 1 6 Detach 25 | . 1 . 1 . 1 1 . 1 4 . . . 2 . . . . 1 7 . . . . 6 Swap 157 | 3 3 3 11 3 . 2 6 19 10 . 2 1 4 13 2 . . 12 36 3 4 . 6 14 Drop 158 | . 4 . 22 1 . 1 9 16 18 . 2 8 4 14 1 . . 3 34 3 1 6 . 11 Fire 349 | 1 44 13 65 40 . 7 78 54 1 . . . 7 . . . . 5 2 . 1 . 28 3 Melee 323 | . . . . . . . . 21 26 5 4 . 2 61 4 . . 22 126 7 . . 7 38 Ram . | . . . . . . . . . . . . . . . . . . . . . . . . . Kick . | . . . . . . . . . . . . . . . . . . . . . . . . . Crush . | . . . . . . . . . . . . . . . . . . . . . . . . . Escape Stasis 29 | . . . . . . . . . 13 . . . . 8 . . . 8 . . . . . . Rewire 2 | . . . . . . . . . . . . . . . . . . . . . . . . 2 Trap . | . . . . . . . . . . . . . . . . . . . . . . . . . Miscellaneous . | . . . . . . . . . . . . . . . . . . . . . . . . . Route ------- -11/Junkyard -10/Materials (discovered 5 exits: *Mat x2 / [*Min x2] / [*Sub]) -10/Mines (discovered 2 exits: *Mat / [*Sub]) -9/Materials (discovered 3 exits: *Mat x2 / *Min) -9/Mines (discovered 3 exits: *Mat x2 / *Exi) -9/Exiles -8/Mines -8/Materials (discovered 2 exits: *Fac / *Sto) -8/Storage (discovered 2 exits: *Fac / *Rec) -7/Factory (discovered 3 exits: *Fac / *Low x2) -7/Lower Caves -7/Lower Caves (discovered 2 exits: *Fac / *Zio) -7/Zion -6/Proximity Caves -6/Factory (discovered 7 exits: *Fac x3 / *Low x2 / *Ext x2) -6/Lower Caves -6/Lower Caves -6/Data Miner -5/Proximity Caves -5/Factory (discovered 5 exits: *Fac x3 / *Upp x2) -5/Upper Caves -5/Upper Caves -5/Warlord -4/Proximity Caves -4/Factory (discovered 1 exit: [*Res]) History --------- Turn | Location | Event 9 | -11/Junkyard | Discovered new exit (range 3) 18 | -11/Junkyard | Entered Materials 313 | -10/Materials | Build established: Mutant 529 | -10/Materials | Repaired Lgt. Treads 557 | -10/Materials | Repaired Assault Rifle 584 | -10/Materials | Repaired Lgt. Treads 629 | -10/Materials | Discovered new exit (range 3) 721 | -10/Materials | Discovered new exit (range 12) 832 | -10/Materials | Discovered new exit (range 14) 1348 | -10/Materials | Discovered new exit (range 8) 1365 | -10/Materials | Discovered new exit (range 13) 1559 | -10/Materials | Entered Mines 1603 | -10/Mines | Met a Derelict bent on vengeance 1723 | -10/Mines | Learned location of Zion (-7) 1801 | -10/Mines | Learned location of Storage (-8) 1901 | -10/Mines | Discovered new exit (range 12) 1951 | -10/Mines | Found a damaged Exp. Sensor Array with a note attached 1953 | -10/Mines | Found Prototype Device 1977 | -10/Mines | Discovered new exit (range 7) 2008 | -10/Mines | Entered Materials 2008 | -9/Materials | Evolved 2 slots: Propulsion x1, Utility x1 2463 | -9/Materials | Repaired Hvy. Assault Rifle 2707 | -9/Materials | Identified Exp. Sensor Array 2808 | -9/Materials | Discovered new exit (range 14) 3146 | -9/Materials | Discovered new exit (range 16) 3306 | -9/Materials | Identified exit to Mines 3553 | -9/Materials | Entered Mines 3623 | -9/Mines | Discovered new exit (range 4) 4143 | -9/Mines | Discovered new exit (range 15) 4212 | -9/Mines | Received a Mining Laser from a helpful Derelict 4323 | -9/Mines | Assembled infested the area 4328 | -9/Mines | Assisted by a Guerilla fighting off Assembled 4394 | -9/Mines | Core integrity fell below 50% 4421 | -9/Mines | Lost 5 parts (1p1n2u1w) 4825 | -9/Mines | Deemed a non-threat by the Exiles lab entrance 4826 | -9/Mines | Discovered new exit (range 5) 4831 | -9/Mines | Entered Exiles 4857 | -9/Exiles | Met 8R-AWN 4874 | -9/Exiles | Met EX-HEX 4931 | -9/Exiles | Met EX-DEC 4997 | -9/Exiles | Discovered new exit (range 14) 5013 | -9/Exiles | Entered Mines 5152 | -8/Mines | Discovered new exit (range 12) 5173 | -8/Mines | Entered Materials 5173 | -8/Materials | Evolved 2 slots: Utility x2 5240 | -8/Materials | Garrison activated, responded to threat 5721 | -8/Materials | Discovered new exit (range 15) 6167 | -8/Materials | Repaired Broken Exp. Sensor Array 6197 | -8/Materials | Discovered new exit (range 10) 6234 | -8/Materials | Build established: Scavenger-Mutant 7522 | -8/Materials | Repaired Broken Cmb. Airjet 7700 | -8/Materials | Identified exit to Factory 7744 | -8/Materials | Identified exit to Storage 7750 | -8/Materials | Entered Storage 8062 | -8/Storage | Build established: Mutant 8391 | -8/Storage | Repaired VSS Leg 8647 | -8/Storage | Build established: Scavenger-Mutant 8695 | -8/Storage | Used back door to open Recycling access 8695 | -8/Storage | Discovered new exit (range 4) 8697 | -8/Storage | Identified exit to Recycling 8996 | -8/Storage | Garrison activated, responded to threat 10385 | -8/Storage | Build established: Mutant 10625 | -8/Storage | Repaired Minigun 10659 | -8/Storage | Learned location of Armory (-3) 11364 | -8/Storage | Discovered exit to Factory (range 11) 11387 | -8/Storage | Entered Factory 11387 | -7/Factory | Evolved 2 slots: Propulsion x1, Utility x1 11388 | -7/Factory | Identified exit to Lower Caves 12548 | -7/Factory | Allied Derelicts emerged from ambush trap array 12870 | -7/Factory | Discovered new exit (range 3) 12891 | -7/Factory | Cargo convoy interrupted 13172 | -7/Factory | Discovered exit to Lower Caves (range 2) 13261 | -7/Factory | Entered Lower Caves 13268 | -7/Lower Caves | Build established: Hacker-Mutant 13306 | -7/Lower Caves | Learned location of 1 exit from Proximity Caves 13565 | -7/Lower Caves | Discovered new exit (range 5) 13567 | -7/Lower Caves | Identified exit to Lower Caves 13579 | -7/Lower Caves | Encountered a Warlord checkpoint 13658 | -7/Lower Caves | Entered another Lower Caves area 13671 | -7/Lower Caves | Attracted the attention of an 0b10 checkpoint 13718 | -7/Lower Caves | Discovered new exit (range 11) 13834 | -7/Lower Caves | Discovered new exit (range 15) 13896 | -7/Lower Caves | Identified exit to Zion 13896 | -7/Lower Caves | Entered Zion 13916 | -7/Zion | Discovered new exit (range 16) 13927 | -7/Zion | System corruption cleaned by Quarantine Array 13935 | -7/Zion | Acquired unknown access codes intercepted by a Zionite 14040 | -7/Zion | Given the Hacking Drone Bay 14040 | -7/Zion | Found Prototype Device 14048 | -7/Zion | Found CR-A16's Pointy Stick 14100 | -7/Zion | Learned Factory terminal intel 14291 | -7/Zion | Learned location of Warlord (-5) 14312 | -7/Zion | Learned Factory emergency access door positions 14399 | -7/Zion | Identified exit to Proximity Caves 14399 | -7/Zion | Entered Proximity Caves 14400 | -6/Proximity Caves | Identified exit to Factory 14871 | -6/Proximity Caves | Learned Factory terminal intel 14923 | -6/Proximity Caves | Entered Factory 14923 | -6/Factory | Evolved 2 slots: Propulsion x1, Utility x1 14925 | -6/Factory | Loaded intel: 28 terminal locations 15025 | -6/Factory | Repaired Broken Gravmag System 15157 | -6/Factory | Discovered new exit (range 7) 15160 | -6/Factory | Identified exit to Factory 15312 | -6/Factory | Discovered new exit (range 10) 15602 | -6/Factory | Discovered new exit (range 5) 15603 | -6/Factory | Identified exit to Extension 15680 | -6/Factory | Discovered exit to Factory (range 16) 16037 | -6/Factory | Fabricated Adv. Signal Interpreter (x2) 16212 | -6/Factory | Identified exit to Lower Caves 16329 | -6/Factory | Central database locked down 16468 | -6/Factory | Discovered exit to Factory (range 8) 16787 | -6/Factory | Identified Hacking Drone Bay 17060 | -6/Factory | Fabricated Exp. Sensor Array? 17405 | -6/Factory | Entered Lower Caves 17546 | -6/Lower Caves | Learned Factory interactive machine intel 17949 | -6/Lower Caves | Found Alien Artifact 17949 | -6/Lower Caves | Identified Core Expander 17949 | -6/Lower Caves | Installed Core Expander, added new Propulsion slot 17977 | -6/Lower Caves | Discovered new exit (range 9) 17992 | -6/Lower Caves | Attracted the attention of an 0b10 checkpoint 18013 | -6/Lower Caves | Identified exit to Lower Caves 18013 | -6/Lower Caves | Entered another Lower Caves area 18043 | -6/Lower Caves | Encountered a Warlord checkpoint 18178 | -6/Lower Caves | Learned Factory terminal intel 18185 | -6/Lower Caves | Discovered new exit (range 8) 18221 | -6/Lower Caves | Identified exit to Data Miner 18238 | -6/Lower Caves | Entered Data Miner 18238 | -6/Data Miner | Discovered new exit (range 6) 18248 | -6/Data Miner | Met Data Miner 18257 | -6/Data Miner | Learned location of Section 7 (-3) 18257 | -6/Data Miner | Acquired the access code to Warlord's prototype stash 18266 | -6/Data Miner | Received God Mode back door access code from Data Miner 18277 | -6/Data Miner | Identified exit to Proximity Caves 18277 | -6/Data Miner | Entered Proximity Caves 18286 | -5/Proximity Caves | Spotted B-75 Beast 18331 | -5/Proximity Caves | Learned Factory stockpile data 18565 | -5/Proximity Caves | Learned location of 1 exit from Upper Caves 20153 | -5/Proximity Caves | Lost 6 parts (1p1n3u1w) 20219 | -5/Proximity Caves | Discovered exit to Factory (range 15) 20316 | -5/Proximity Caves | Entered Factory 20316 | -5/Factory | Evolved 2 slots: Power x1, Utility x1 20318 | -5/Factory | Loaded intel: 52 interactive machine locations 20319 | -5/Factory | Loaded intel: 26 terminal locations 20975 | -5/Factory | Discovered new exit (range 5) 20977 | -5/Factory | Identified exit to Upper Caves 21388 | -5/Factory | Discovered new exit (range 15) 21625 | -5/Factory | Build established: Hacker-Scout 21810 | -5/Factory | Discovered new exit (range 3) 21811 | -5/Factory | Identified exit to Factory 22788 | -5/Factory | Lost 3 parts (1p1n1u) 23340 | -5/Factory | Discovered exit to Factory (range 13) 23983 | -5/Factory | Local machine network offline 23997 | -5/Factory | Entered Upper Caves 23998 | -5/Upper Caves | Identified exit to Upper Caves 24468 | -5/Upper Caves | Entered another Upper Caves area 24469 | -5/Upper Caves | Identified exit to Warlord 24473 | -5/Upper Caves | Spotted B-75 Beast 24484 | -5/Upper Caves | Encountered a Warlord checkpoint 24676 | -5/Upper Caves | Entered Warlord 24694 | -5/Warlord | System corruption cleaned by Quarantine Array 24701 | -5/Warlord | Discovered new exit (range 14) 24794 | -5/Warlord | Visited the Vortex Lab 24802 | -5/Warlord | Warlord's base attacked by MAIN.C 24900 | -5/Warlord | Met Warlord 24904 | -5/Warlord | Opened Warlord's prototype stash 24907 | -5/Warlord | Found Prototype Reactor 24907 | -5/Warlord | Identified Vortex Chain Reactor 25062 | -5/Warlord | Opened side exit 25085 | -5/Warlord | Identified exit to Proximity Caves 25087 | -5/Warlord | Entered Proximity Caves 25150 | -4/Proximity Caves | Learned Research terminal intel 25199 | -4/Proximity Caves | Build established: Hacker-Assassin 25965 | -4/Proximity Caves | Spotted B-86 Titan 26064 | -4/Proximity Caves | Entered Factory 26064 | -4/Factory | Evolved 2 slots: Utility x1, Weapon x1 26065 | -4/Factory | Loaded intel: 25 terminal locations 26372 | -4/Factory | Build established: Hacker-Scout 26408 | -4/Factory | Discovered new exit (range 22) 26688 | -4/Factory | Fabricated Exp. Sensor Array (x1) 27215 | -4/Factory | Self-destructed Last Messages --------------- 27196_ K-01 Serf collects debris. 27197_ Terminal disabled. 27197_ Cld. Aerolev Unit destroyed. 27197_ P-70 Sage resets G-67 Veteran, system corruption cleaned. 27197_ U-05 Engineer destroyed. 27198_ Micro-nuke Launcher destroyed. 27199_ The unstable cave ceiling collapses. 27199_ K-01 Serf collects debris. 27202_ The unstable cave ceiling collapses. 27202_ K-01 Serf collects debris. 27203_ The unstable cave ceiling collapses. 27203_ K-01 Serf collects debris. 27205_ JI:SI67SIYJ|FVFNJI>1EB,0%6BS:BI 27205_ Sneak attack on T-07 Excavator. 27205_ Destroyed Mining Laser. 27205_ T-07 Excavator destroyed. 27206_ Acquired 16 matter. 27206_ K-01 Serf collects debris. 27211_ K-01 Serf destroyed. 27211_ Antigrav System destroyed. Map ----- +----------------------------------------------------+ | "" "" ## #???????????????????????????????????????? | | ""R"" ## #???????????????????????????????????????? | | """" ## #???????????????????????????????????????? | | #####/## #???????????????????????????????????????? | | ##### #?????????????##?##### ?????????????????? | | #????????????? ?????????????????? | | ! ! !#???????????k ?????????????????? | | #?????????? ????????????????? | | #???????? ?????????????????? | | #?????? ???????????????? | | " ##### #?# ???# #??????????????? | | " #?# ???# #?????#####???## | | # ## ###############R#### #????? ] ? | | ## #?????# # #?????? """ | | # #?????# + #?????? """ | | m#?????# # #???????" """ ? | | #?????# gggg # #???????" ? | | #?????# # #???????? """?? | | #?????# # #???????? """?? | | #######= # #????????? ""??? | | g p p! *% # #????????? ??? | | #######! = # #?????????#+#??? | | # #?????# # #?????????# #??? | | wT?????# # #???####### #??? | | """ # #????# #^^^^^#???#"""""# #??? | | """ ] # ################@### #####""T""# #### | | """ # | | # | | *= + """"""""" " | | *= # | | * # k """"""""" " | | ####+#############+########## | | # ???#] #??# """"""""" " | | # ??# #??# | | # ### """""" #??# """"""""" " | | ######## + + """""" #??# | | ???????# ### """""" #### ! | | ???????# ! ??# """""" + | | ???????# ???# ######+#+######### | | ???????# ???# ! """""" # # | | ???????########????# """""" # # | | ???????????????????# """""" # # | | ???????????????????# """""" ?# # | | ???????????????????# ?# # | | ???????????????????############?# # | | ????????????????????????????????# # | | ????????????????????????????????# # | | ????????????????????????????????# # | | ?????????????????????????##?????######## ######### | | ########?????????????????# ####################### | +----------------------------------------------------+ Best States ------------- Heat Dissipation 81 Coolant Potential 50 Energy Generation 55 Energy Capacity 700 Matter Stores 300 Matter Capacity 300 Sight Range 22 Robot Scan Range 20 Terrain Scan Density 10 Power Amplification 20 EM Shielding 3 Armor Coverage 375 Resistance: EM 25 Core Shielding 20 Power Shielding 66 Utility Shielding 66 Phase Shifting 10 Evasion (%) 66 Melee Accuracy 8 Recoil Reduction 3 Offensive Hacking 37 Defensive Hacking 26 Authchip Count 1 Item Schematics ----------------- Exp. Sensor Array | -8/Materials | Scanalyzed Beamcaster | -7/Zion | Free Riot Gun | -7/Zion | Free Arc Thrower | -7/Zion | Free Flamer | -7/Zion | Free Enh. Flamer | -7/Zion | Free Med. Reactive Plating | -7/Zion | Archive Adv. Heat Sink | -7/Zion | Archive Transmission Jammer | -7/Zion | Archive Imp. Target Analyzer | -7/Zion | Archive Great Axe | -7/Zion | Archive Enh. Optical Array | -7/Zion | Archive Med. Treads | -7/Zion | Archive Hvy. Phase Cannon | -7/Zion | Archive Imp. Focal Shield | -7/Zion | Archive Energy Filter | -7/Zion | Archive Imp. Hardlight Generator | -7/Zion | Archive Hvy. Machine Gun | -7/Zion | Archive Component Analysis Suite | -7/Zion | Archive Hpw. Shock Rifle | -7/Zion | Archive Imp. Cooling System | -7/Zion | Archive Imp. System Restoration Module | -6/Factory | Scanalyzed Adv. Signal Interpreter | -6/Factory | Hacked Lrg. Storage Unit | -6/Factory | Hacked Antigrav System | -6/Factory | Hacked Cmb. Airjet | -6/Factory | Scanalyzed Hvy. Gauss Cannon | -6/Factory | Hacked Adv. Plasma Cannon | -6/Factory | Hacked Combat Drone Bay | -6/Data Miner | Free Lgt. Regenerative Plating | -6/Data Miner | Free Enh. Flexi-carbon Leg | -6/Data Miner | Free Imp. Matter Compressor | -6/Data Miner | Free Hvy. Gatling Laser | -6/Data Miner | Free Centrium Wheel | -6/Data Miner | Free Imp. Phase Shifter | -6/Data Miner | Free Adv. Datajack | -6/Data Miner | Free Myomer Leg | -6/Data Miner | Free Quantum Rifle | -6/Data Miner | Free Plasma Sword | -5/Factory | Scanalyzed Arm. Wheel | -5/Factory | Scanalyzed Spear | -5/Factory | Scanalyzed Bore Cannon | -5/Factory | Scanalyzed Imp. Dynamic Insulation System | -5/Factory | Scanalyzed Robot Schematics ------------------ A-02 Transporter | -7/Zion | Archive T-07 Excavator | -7/Zion | Archive R-06 Scavenger | -7/Zion | Archive B-48 Gladiator | -6/Data Miner | Free G-50 Soldier | -6/Data Miner | Free D-63 Destroyer | -6/Data Miner | Free S-27 Virus | -6/Data Miner | Free P-70 Sage | -6/Data Miner | Free L-61 Swordsman | -6/Data Miner | Free Fabricated ------------ Adv. Signal Interpreter | x2 | -6/Factory Exp. Sensor Array | x1 | -6/Factory | Authchip Exp. Sensor Array | x1 | -4/Factory Alien Tech Used ----------------- Core Expander Achievements -------------- None Challenges ------------ None Game ------ Seed ExplosiveFireFemtoactuators Manual? 0 Play Time 04:20:58 Cumulative 68.1 hours Start 2023.07.17 @ 15:50:30 End 2023.07.19 @ 22:12:05 Sessions 7 Manual Loads 0 Difficulty Rogue Special Mode None Game No. 54 Rogue 54 Adventurer 0 Explorer 0 Win Type - Total 1 Types 0/0/1/0/0/0/0/0/0 Lore% 39 Gallery% 40 Achievement% 52 Wizard Run 0 Options --------- ASCII 1 Keyboard 1 Movement Arrows Keybinds 0 Fullscreen 2 Font 24/Proggy Map View 76x50 Tactical HUD 1 Map Filters NONE Filters NONE Steam 1 RUN: c32cb79c-7a54-4c2c-8a33-8f28e437463f